[Event "Bratislava Centenary Championship"]
[Site "Bratislava"]
[Date "2019.05.12"]
[Round "4.4"]
[White "Franzen, Jozef"]
[Black "Schwarz, Dusan"]
[Result "1/2-1/2"]
[ECO "B51"]
[WhiteElo "2229"]
[BlackElo "2326"]
[Annotator "NA"]
[PlyCount "124"]
[EventDate "2019.05.10"]
[EventType "tourn"]
[EventCountry "SVK"]
[SourceTitle "playchess.com"]
[Source "ChessBase"]
[SourceQuality "1"]
[TimeControl "40/5400+30:1800+30"]

1. e4 {[%emt 0:00:00]} c5 {[%emt 0:00:00]} 2. Nf3 {[%emt 0:00:00]} d6 {[%emt 0:00:00]} 3. Bb5+ {[%emt 0:00:00]} Nd7 {[%emt 0:00:23]} 4. d4 {[%emt 0:00:07]} cxd4 {[%emt 0:03:53]} 5. Qxd4 {[%emt 0:00:53]} a6 {[%emt 0:01:14]} 6. Bxd7+ {[%emt 0:00:45]} Bxd7 {[%emt 0:00:09]} 7. O-O {[%emt 0:00:20]} e5 {[%emt 0:01:54]} 8. Qd3 {[%emt 0:00:26]} h6 {[%emt 0:00:29]} 9. c4 {[%emt 0:01:08] B51: Sicilian: Moscow Variation (3 Bb5+) without 3...Bd7} (9. a4 Nf6 10. a5 Be7 11. c4 b5 12. axb6 Qxb6 13. Nc3 O-O 14. Be3 Qb7 15. h3 Rfc8 16. Nd2 Be6 17. Rfb1 a5 18. b3 Ra6 19. Ra2 Bd7 20. Rba1 {½-½ (20) Wang,H (2730)-Nepomniachtchi,I (2763) St Petersburg 2018}) 9... Nf6 {[%emt 0:03:45]} 10. Nc3 {[%emt 0:00:10]} Rc8 {[%emt 0:01:08]} 11. b3 {[%emt 0:00:54]} Be7 {[%emt 0:05:00]} (11... b5 $5) 12. Rd1 {[%emt 0:02:46]} O-O {[%emt 0:03:35]} 13. a4 {[%emt 0:01:54]} Qa5 {[%emt 0:02:13]} 14. Bd2 {[%emt 0:02:25]} Qc7 {[%emt 0:00:24] [#]} 15. a5 $146 {[%emt 0:02:43]} ({Predecessor:} 15. Be3 Qa5 16. Ne1 Qb4 17. Nc2 Qxb3 18. Na3 Nxe4 {1-0 (42) Idani,P (2508)-Indjic,A (2538) Yerevan 2014}) 15... Be6 {[%emt 0:06:54]} 16. Rdc1 {[%emt 0:04:19]} Nd7 {[%emt 0:05:06]} 17. Nd5 {[%emt 0:06:31]} Qd8 {[%emt 0:00:41]} 18. Bb4 {[%emt 0:18:17]} Nc5 {[%emt 0:02:34]} 19. Bxc5 {[%emt 0:00:46]} Rxc5 {[%emt 0:02:37]} 20. b4 {[%emt 0:00:12]} Rc6 {[%emt 0:00:59]} 21. Rc3 {[%emt 0:08:15]} f5 {[%emt 0:01:40]} 22. exf5 {[%emt 0:04:15]} Bxf5 {[%emt 0:00:56]} 23. Qe3 {[%emt 0:00:14]} Bg4 {[%emt 0:19:44]} 24. Qe4 {[%emt 0:00:30]} Bf5 {[%emt 0:03:45]} 25. Qe3 {[%emt 0:00:15]} Bf6 {[%emt 0:00:54]} 26. Rac1 {[%emt 0:02:40]} Bg4 {[%emt 0:02:17]} 27. Nxf6+ {[%emt 0:06:53]} Qxf6 {[%emt 0:03:03]} 28. Nd2 {[%emt 0:00:11]} Qf4 {[%emt 0:03:57]} 29. Ne4 {[%emt 0:06:14]} Qxe3 {[%emt 0:03:18]} 30. Rxe3 {[%emt 0:00:57]} Bf5 {[%emt 0:00:19]} 31. f3 {[%emt 0:04:03]} Bxe4 {[%emt 0:05:36]} 32. fxe4 {[%emt 0:01:25]} Rf7 {[%emt 0:06:08]} 33. Rf3 {[%emt 0:02:57]} Rxf3 {[%emt 0:00:50]} 34. gxf3 {[%emt 0:00:02]} Kf7 {[%emt 0:00:31]} 35. Kf2 {[%emt 0:00:06]} Ke6 {[%emt 0:00:21]} 36. Ke3 {[%emt 0:00:18]} Rc7 {[%emt 0:00:56]} 37. Kd3 {[%emt 0:00:14]} Rf7 {[%emt 0:00:32]} 38. Ke3 {[%emt 0:00:25]} g5 {[%emt 0:01:42]} 39. Rb1 {[%emt 0:01:29]} Rc7 {[%emt 0:01:12]} 40. Kd3 {[%emt 0:00:11]} Kf6 {[%emt 0:04:41]} 41. b5 {[%emt 0:31:55]} Rc5 {[%emt 0:32:48]} 42. bxa6 {[%emt 0:00:11]} bxa6 {[%emt 0:00:05]} 43. Rb6 {[%emt 0:00:06]} Rxa5 {[%emt 0:00:30]} 44. Rxd6+ {[%emt 0:00:08]} Ke7 {[%emt 0:00:00]} 45. Rxh6 {[%emt 0:00:00]} Ra3+ {[%emt 0:00:00]} 46. Ke2 {[%emt 0:00:00]} Ra2+ {[%emt 0:00:00]} 47. Ke3 {[%emt 0:00:00]} a5 {[%emt 0:00:00]} 48. Ra6 {[%emt 0:00:00]} a4 {[%emt 0:00:00]} 49. c5 {[%emt 0:00:00]} a3 {[%emt 0:00:00]} 50. Kd3 {[%emt 0:00:00]} Rf2 {[%emt 0:00:00]} 51. Kc4 {[%emt 0:00:00]} Rxf3 {[%emt 0:00:00]} 52. Kd5 {[%emt 0:00:00]} g4 {[%emt 0:00:00]} 53. Kxe5 {[%emt 0:00:00]} Kd7 {[%emt 0:00:00]} 54. Kd5 {[%emt 0:00:00]} Rd3+ {[%emt 0:00:00]} 55. Kc4 {[%emt 0:00:00]} Rh3 {[%emt 0:00:00]} 56. e5 $11 {[%emt 0:00:00]} Rxh2 {[%emt 0:00:00]} 57. Rxa3 {[%emt 0:00:00]} Ke6 {[%emt 0:00:00]} 58. Kd4 {[%emt 0:00:00]} Rd2+ {[%emt 0:00:19]} 59. Ke4 {[%emt 0:00:00]} Re2+ {[%emt 0:00:17]} 60. Kf4 {[%emt 0:00:00]} Rf2+ {[%emt 0:00:24]} 61. Kxg4 {[%emt 0:00:00]} Kxe5 {[%emt 0:00:22]} 62. Rc3 {[%emt 0:00:00]} Rf7 {[%emt 0:00:23]} 1/2-1/2

[Event "Bratislava Centenary Championship"]
[Site "Bratislava"]
[Date "2019.05.12"]
[Round "4.5"]
[White "Kolman, Richard"]
[Black "Kostolansky, Sebastian Lukas"]
[Result "0-1"]
[ECO "E71"]
[WhiteElo "1995"]
[BlackElo "2323"]
[Annotator "NA"]
[PlyCount "70"]
[EventDate "2019.05.10"]
[EventType "tourn"]
[EventCountry "SVK"]
[SourceTitle "playchess.com"]
[Source "ChessBase"]
[SourceQuality "1"]
[TimeControl "40/5400+30:1800+30"]

1. d4 {[%emt 0:00:00]} Nf6 {[%emt 0:00:00]} 2. c4 {[%emt 0:00:02]} g6 {[%emt 0:00:38]} 3. Nc3 {[%emt 0:00:14]} Bg7 {[%emt 0:00:05]} 4. e4 {[%emt 0:00:16]} d6 {[%emt 0:00:06]} 5. h3 {[%emt 0:00:22]} O-O {[%emt 0:00:25]} 6. Be3 {[%emt 0:00:47]} Nc6 {[%emt 0:07:19] E71: King's Indian: 4 e4 d6 5 h3} (6... e5 7. d5 a5 8. g4 Na6 9. Nge2 Nd7 10. Qd2 Ndc5 11. Ng3 c6 12. Be2 cxd5 13. cxd5 a4 14. h4 Bd7 15. h5 Rc8 {0-1 (39) Caruana,F (2832)-Nakamura,H (2746) London 2018}) 7. d5 {[%emt 0:05:22]} Nb4 {[%emt 0:00:15]} 8. g4 $146 {[%emt 0:04:57]} ({Predecessor:} 8. a3 Na6 9. Bd3 e6 10. Nge2 Nc5 11. Bc2 exd5 12. cxd5 Re8 13. f3 Nh5 14. g4 {1-0 (36) Jones,G (2660)-Maze,S (2614) Porticcio 2017}) 8... c5 {[%emt 0:14:04]} 9. a3 {[%emt 0:05:58]} Na6 {[%emt 0:00:13]} 10. Nge2 {[%emt 0:00:27]} e6 {[%emt 0:06:58]} 11. Ng3 {[%emt 0:01:00]} exd5 {[%emt 0:03:53]} 12. cxd5 {[%emt 0:00:58]} Re8 {[%emt 0:04:31]} 13. Be2 {[%emt 0:01:42]} Nc7 {[%emt 0:04:51]} 14. h4 {[%emt 0:10:44]} b5 {[%emt 0:03:44]} 15. g5 {[%emt 0:07:47]} Nd7 {[%emt 0:00:26]} 16. Qd2 {[%emt 0:06:06]} Rb8 {[%emt 0:18:25]} 17. Nd1 {[%emt 0:23:51]} Nb6 {[%emt 0:05:33]} 18. Rc1 {[%emt 0:05:31]} Nc4 {[%emt 0:01:32]} 19. Bxc4 {[%emt 0:00:15]} bxc4 {[%emt 0:00:05]} 20. h5 {[%emt 0:07:01]} Bg4 {[%emt 0:04:55]} 21. hxg6 {[%emt 0:00:59]} fxg6 {[%emt 0:05:33]} 22. Rxc4 {[%emt 0:03:03]} Bxd1 {[%emt 0:00:55]} 23. Qxd1 {[%emt 0:00:16]} Rxb2 {[%emt 0:00:10]} 24. Qg4 {[%emt 0:04:08]} Rb1+ {[%emt 0:00:47]} 25. Rc1 {[%emt 0:00:16]} Rxc1+ {[%emt 0:01:53]} (25... Bc3+ $17 26. Kf1 Rb3) 26. Bxc1 {[%emt 0:00:07]} Qe7 {[%emt 0:05:10]} 27. Kf1 {[%emt 0:00:27]} Nb5 {[%emt 0:02:49]} 28. f3 {[%emt 0:02:06]} c4 {[%emt 0:00:38]} 29. Ne2 {[%emt 0:00:54]} c3 {[%emt 0:01:55]} 30. Nf4 {[%emt 0:00:35]} Nd4 {[%emt 0:00:44]} 31. Kg2 {[%emt 0:01:06]} c2 {[%emt 0:02:18]} 32. Qh4 {[%emt 0:00:49]} Be5 {[%emt 0:00:27]} 33. Nd3 {[%emt 0:00:35]} Bh8 {[%emt 0:01:15]} 34. Bf4 {[%emt 0:00:31]} Nxf3 {[%emt 0:00:59]} 35. Qh3 {[%emt 0:04:36]} Nxg5 $19 {[%emt 0:01:29]} 0-1

[Event "Bratislava Centenary Championship"]
[Site "Bratislava"]
[Date "2019.05.13"]
[Round "5.2"]
[White "Schwarz, Dusan"]
[Black "Kolman, Richard"]
[Result "1-0"]
[ECO "D32"]
[WhiteElo "2326"]
[BlackElo "1995"]
[Annotator "ChessBase"]
[PlyCount "31"]
[EventDate "2019.05.10"]
[EventType "tourn"]
[EventCountry "SVK"]
[SourceTitle "playchess.com"]
[Source "ChessBase"]
[SourceQuality "1"]
[TimeControl "40/5400+30:1800+30"]

1. d4 {[%emt 0:00:00]} d5 {[%emt 0:00:00]} 2. c4 {[%emt 0:00:00]} e6 {[%emt 0:00:00]} 3. Nc3 {[%emt 0:00:00]} c5 {[%emt 0:00:15]} 4. cxd5 {[%emt 0:00:23]} cxd4 {[%emt 0:00:10]} 5. Qa4+ {[%emt 0:01:15]} Bd7 {[%emt 0:00:11]} 6. Qxd4 {[%emt 0:00:15]} exd5 {[%emt 0:00:13]} 7. Qxd5 {[%emt 0:00:49]} Nc6 {[%emt 0:00:11]} 8. Nf3 {[%emt 0:00:48]} Nf6 {[%emt 0:00:16]} 9. Qb3 {[%emt 0:00:47]} Bc5 {[%emt 0:00:24]} 10. Bg5 {[%emt 0:01:05]} Na5 {[%emt 0:10:33]} 11. Qc2 {[%emt 0:02:43]} Qb6 {[%emt 0:02:06]} 12. e3 {[%emt 0:01:51]} O-O-O {[%emt 0:05:13]} 13. Bxf6 {[%emt 0:07:15]} gxf6 {[%emt 0:01:02]} 14. Ne4 {[%emt 0:03:11]} Qb4+ {[%emt 0:01:33]} 15. Nfd2 {[%emt 0:00:21]} b6 {[%emt 0:14:56]} 16. a3 {[%emt 0:00:35]} 1-0

[Event "Bratislava Centenary Championship"]
[Site "Bratislava"]
[Date "2019.05.14"]
[Round "6.3"]
[White "Franzen, Jozef"]
[Black "Kralovic, Andrej"]
[Result "1-0"]
[ECO "C65"]
[WhiteElo "2229"]
[BlackElo "2253"]
[Annotator "ChessBase"]
[PlyCount "97"]
[EventDate "2019.05.10"]
[EventType "tourn"]
[EventCountry "SVK"]
[SourceTitle "playchess.com"]
[Source "ChessBase"]
[SourceQuality "1"]
[TimeControl "40/5400+30:1800+30"]

1. e4 {[%emt 0:00:00]} e5 {[%emt 0:00:00]} 2. Nf3 {[%emt 0:00:00]} Nc6 {[%emt 0:00:12]} 3. Bb5 {[%emt 0:00:00]} Nf6 {[%emt 0:00:25]} 4. d3 {[%emt 0:00:07]} Bc5 {[%emt 0:00:40]} 5. c3 {[%emt 0:01:13]} O-O {[%emt 0:00:21]} 6. Be3 {[%emt 0:02:42]} Qe7 {[%emt 0:06:04]} 7. Qe2 {[%emt 0:03:04]} a6 {[%emt 0:07:43]} 8. Ba4 {[%emt 0:01:00]} b5 {[%emt 0:02:34]} 9. Bb3 {[%emt 0:00:24]} d6 {[%emt 0:05:55]} 10. Nbd2 {[%emt 0:00:28]} h6 {[%emt 0:04:31]} 11. a4 {[%emt 0:05:15]} Bxe3 {[%emt 0:04:24]} 12. fxe3 {[%emt 0:04:51]} Be6 {[%emt 0:01:28]} 13. O-O {[%emt 0:05:23]} d5 {[%emt 0:07:33]} 14. exd5 {[%emt 0:04:49]} Bxd5 {[%emt 0:00:31]} 15. Nh4 {[%emt 0:06:35]} Bxb3 {[%emt 0:05:02]} 16. Nxb3 {[%emt 0:00:03]} Qe6 {[%emt 0:08:06]} 17. Nc5 {[%emt 0:02:09]} Qg4 {[%emt 0:00:06]} 18. Qxg4 {[%emt 0:02:32]} Nxg4 {[%emt 0:00:10]} 19. Rf3 {[%emt 0:04:34]} b4 {[%emt 0:05:56]} 20. Raf1 {[%emt 0:05:11]} bxc3 {[%emt 0:01:41]} 21. bxc3 {[%emt 0:01:27]} Rad8 {[%emt 0:03:49]} 22. Rg3 {[%emt 0:05:22]} h5 {[%emt 0:01:36]} 23. h3 {[%emt 0:08:22]} Nh6 {[%emt 0:03:47]} 24. Nf5 {[%emt 0:04:56]} Nxf5 {[%emt 0:00:39]} 25. Rxf5 {[%emt 0:00:02]} h4 {[%emt 0:10:59]} 26. Rg4 {[%emt 0:00:22]} Rd6 {[%emt 0:00:17]} 27. Rxh4 {[%emt 0:02:37]} Rb8 {[%emt 0:03:04]} 28. Rfh5 {[%emt 0:02:18]} Rb1+ {[%emt 0:01:11]} 29. Kh2 {[%emt 0:00:22]} f6 {[%emt 0:00:24]} 30. Rh8+ {[%emt 0:00:36]} Kf7 {[%emt 0:00:08]} 31. Rc8 {[%emt 0:00:11]} Ne7 {[%emt 0:03:23]} 32. Rxc7 {[%emt 0:00:18]} Re1 {[%emt 0:00:33]} 33. Rb4 {[%emt 0:01:01]} Rc6 {[%emt 0:00:51]} 34. Rxc6 {[%emt 0:01:49]} Nxc6 {[%emt 0:00:14]} 35. Rb7+ {[%emt 0:00:03]} Kg6 {[%emt 0:00:47]} 36. e4 {[%emt 0:01:02]} Rc1 {[%emt 0:02:47]} 37. Ne6 {[%emt 0:02:00]} Rxc3 {[%emt 0:03:30]} 38. Rxg7+ {[%emt 0:00:20]} Kh6 {[%emt 0:00:13]} 39. Rc7 {[%emt 0:00:14]} Rc2 {[%emt 0:00:11]} 40. Kg3 {[%emt 0:05:37]} Nb4 {[%emt 0:03:07]} 41. Rxc2 {[%emt 0:30:50]} Nxc2 {[%emt 0:30:09]} 42. Nc5 {[%emt 0:00:42]} Nb4 {[%emt 0:00:30]} 43. Kg4 {[%emt 0:01:21]} Kg6 {[%emt 0:00:13]} 44. h4 {[%emt 0:00:14]} a5 {[%emt 0:00:22]} 45. h5+ {[%emt 0:02:45]} Kf7 {[%emt 0:00:26]} 46. Kf3 {[%emt 0:00:34]} Kg7 {[%emt 0:01:06]} 47. Ke2 {[%emt 0:01:32]} Nc6 {[%emt 0:00:26]} 48. Nb3 {[%emt 0:00:36]} Kh6 {[%emt 0:01:10]} 49. g4 {[%emt 0:00:06]} 1-0

[Event "Bratislava Centenary Championship"]
[Site "Bratislava"]
[Date "2019.05.15"]
[Round "7.2"]
[White "Oprea, Erik"]
[Black "Kostolansky, Sebastian Lukas"]
[Result "0-1"]
[ECO "A22"]
[WhiteElo "2127"]
[BlackElo "2323"]
[Annotator "ChessBase"]
[PlyCount "68"]
[EventDate "2019.05.10"]
[EventType "tourn"]
[EventCountry "SVK"]
[SourceTitle "playchess.com"]
[Source "ChessBase"]
[SourceQuality "1"]
[TimeControl "40/5400+30:1800+30"]

1. c4 {[%emt 0:01:01]} e5 {[%emt 0:00:00]} 2. Nc3 {[%emt 0:00:06]} Nf6 {[%emt 0:00:02]} 3. e3 {[%emt 0:00:24]} Bb4 {[%emt 0:03:35]} 4. Qc2 {[%emt 0:01:28]} O-O {[%emt 0:01:03]} 5. a3 {[%emt 0:00:06]} Bxc3 {[%emt 0:01:24]} 6. dxc3 {[%emt 0:00:22]} Nc6 {[%emt 0:03:16]} 7. e4 {[%emt 0:00:07]} d6 {[%emt 0:02:18]} 8. f3 {[%emt 0:00:11]} a5 {[%emt 0:03:32]} 9. a4 {[%emt 0:00:22]} Be6 {[%emt 0:03:38]} 10. Be3 {[%emt 0:00:11]} Ne7 {[%emt 0:13:46]} 11. Bd3 {[%emt 0:03:48]} c6 {[%emt 0:03:42]} 12. g4 {[%emt 0:01:36]} Qc7 {[%emt 0:08:25]} 13. Bg5 {[%emt 0:09:23]} Ne8 {[%emt 0:01:17]} 14. Ne2 {[%emt 0:00:48]} h6 {[%emt 0:00:48]} 15. Be3 {[%emt 0:02:42]} d5 {[%emt 0:02:43]} 16. cxd5 {[%emt 0:01:27]} cxd5 {[%emt 0:00:06]} 17. Ng3 {[%emt 0:02:36]} dxe4 {[%emt 0:11:45]} 18. Bxe4 {[%emt 0:06:01]} Nd6 {[%emt 0:04:38]} 19. Rg1 {[%emt 0:34:48]} Nc4 {[%emt 0:05:09]} 20. Bc1 {[%emt 0:03:39]} Rad8 {[%emt 0:02:11]} 21. b3 {[%emt 0:05:11]} Qb6 {[%emt 0:03:11]} 22. Kf1 {[%emt 0:05:40]} Nd6 {[%emt 0:05:59]} 23. c4 {[%emt 0:04:08]} Nxe4 {[%emt 0:01:49]} 24. Nxe4 {[%emt 0:00:18]} f5 {[%emt 0:02:37]} 25. gxf5 {[%emt 0:04:10]} Nxf5 {[%emt 0:00:41]} 26. Kg2 {[%emt 0:05:14]} Nh4+ {[%emt 0:11:55]} 27. Kh1 {[%emt 0:00:05]} Nxf3 {[%emt 0:01:32]} 28. Bxh6 {[%emt 0:00:36]} Nxg1 {[%emt 0:01:05]} 29. Rxg1 {[%emt 0:00:36]} Bg4 {[%emt 0:00:38]} 30. Rxg4 {[%emt 0:03:54]} Rf1+ {[%emt 0:00:14]} 31. Kg2 {[%emt 0:00:10]} Rg1+ {[%emt 0:00:09]} 32. Kf3 {[%emt 0:01:02]} Rf8+ {[%emt 0:00:12]} 33. Bf4 {[%emt 0:00:39]} Rxg4 {[%emt 0:00:05]} 34. c5 {[%emt 0:01:28]} Rfxf4+ {[%emt 0:00:09]} 0-1

[Event "Bratislava Centenary Championship"]
[Site "Bratislava"]
[Date "2019.05.15"]
[Round "7.3"]
[White "Kralovic, Andrej"]
[Black "Kolman, Richard"]
[Result "1-0"]
[ECO "B20"]
[WhiteElo "2253"]
[BlackElo "1995"]
[Annotator "NA RC"]
[PlyCount "43"]
[EventDate "2019.05.10"]
[EventType "tourn"]
[EventCountry "SVK"]
[SourceTitle "playchess.com"]
[Source "ChessBase"]
[SourceQuality "1"]
[TimeControl "40/5400+30:1800+30"]

{[%evp 8,39,4,8,32767,9,11,2,32767,32767,32767,32767,32767,32767,32767,32767,32767,32767,32767,32767,32767,16,13,30,38,32767,41,10,13,32767,32767,0,57,52]} 1. e4 {[%emt 0:00:00]} c5 {[%emt 0:00:00]} 2. b3 {[%emt 0:00:04]} Nc6 {[%emt 0:01:29]} 3. Bb2 {[%emt 0:00:14]} e5 {[%emt 0:02:12]} 4. Bb5 {[%emt 0:01:57]} Nd4 {[%emt 0:05:29]} 5. Bc4 {[%emt 0:00:34]} Nf6 {[%emt 0:00:26]} 6. Nc3 {[%emt 0:01:14] B20: Sicilian: Unusual White 2nd moves} Be7 {[%emt 0:06:12]} (6... d6 7. Nge2 Be7 8. O-O O-O 9. Ng3 Rb8 10. a4 a6 11. Nd5 Be6 12. a5 Nxd5 13. exd5 {0-1 (45) Reefat,B (2449)-Ismagambetov,A (2519) Al Ain 2014}) 7. Nge2 {[%emt 0:01:23]} O-O {[%emt 0:01:07]} 8. d3 {[%emt 0:02:06]} a6 {[%emt 0:03:32]} 9. a4 $146 {[%emt 0:00:52]} ({Predecessor:} 9. Nd5 d6 10. O-O Bg4 11. f3 Be6 12. Nxe7+ Qxe7 {½-½ (34) Skorna,U (2122)-Schwarzmeier,J (2230) GER email 2007}) 9... b6 {[%emt 0:01:38]} 10. Nd5 {[%emt 0:07:40]} Bb7 {[%emt 0:01:32]} 11. Nec3 {[%emt 0:04:02]} d6 {[%emt 0:18:09]} 12. O-O {[%emt 0:01:29]} Nd7 {[%emt 0:02:32]} 13. f4 {[%emt 0:06:11]} exf4 {[%emt 0:01:00]} 14. Nxe7+ {[%emt 0:06:49]} Qxe7 {[%emt 0:00:08]} 15. Nd5 {[%emt 0:00:12]} Qe5 {[%emt 0:08:48]} 16. Nxf4 {[%emt 0:04:42]} Nf6 {[%emt 0:04:56]} 17. Qd2 {[%emt 0:13:02]} Nf3+ {[%emt 0:13:38]} 18. Rxf3 {[%emt 0:03:14]} Qxb2 {[%emt 0:00:04]} 19. Raf1 {[%emt 0:00:15]} d5 {[%emt 0:09:00]} (19... Bc6 $11) 20. exd5 $14 {[%emt 0:02:13]} Nxd5 {[%emt 0:07:05]} 21. Bxd5 {[%emt 0:02:11]} Qd4+ {[%emt 0:01:32]} 22. Qf2 {[%emt 0:00:40]} 1-0

[Event "Bratislava Centenary Championship"]
[Site "Bratislava"]
[Date "2019.05.16"]
[Round "8.4"]
[White "Kostolansky, Sebastian Lukas"]
[Black "Kralovic, Andrej"]
[Result "1-0"]
[ECO "B12"]
[WhiteElo "2323"]
[BlackElo "2253"]
[Annotator "ChessBase"]
[PlyCount "157"]
[EventDate "2019.05.10"]
[EventType "tourn"]
[EventCountry "SVK"]
[SourceTitle "playchess.com"]
[Source "ChessBase"]
[SourceQuality "1"]
[TimeControl "40/5400+30:1800+30"]

1. e4 {[%emt 0:00:00]} c6 {[%emt 0:00:12]} 2. d4 {[%emt 0:00:00]} d5 {[%emt 0:00:22]} 3. e5 {[%emt 0:00:00]} Bf5 {[%emt 0:01:06]} 4. Be3 {[%emt 0:10:07]} Qb6 {[%emt 0:07:12]} 5. Nd2 {[%emt 0:25:43]} Qxb2 {[%emt 0:02:55]} 6. Rb1 {[%emt 0:04:49]} Qxa2 {[%emt 0:05:25]} 7. Rxb7 {[%emt 0:00:18]} e6 {[%emt 0:29:21]} 8. Qc1 {[%emt 0:21:44]} Nd7 {[%emt 0:11:46]} 9. Rb2 {[%emt 0:13:02]} Qa5 {[%emt 0:07:01]} 10. Qb1 {[%emt 0:00:38]} Ne7 {[%emt 0:01:20]} 11. Ngf3 {[%emt 0:05:49]} Nc8 {[%emt 0:02:48]} 12. Nh4 {[%emt 0:01:30]} Bg4 {[%emt 0:03:02]} 13. h3 {[%emt 0:02:37]} Bh5 {[%emt 0:00:06]} 14. g4 {[%emt 0:01:29]} Bg6 {[%emt 0:01:00]} 15. Nxg6 {[%emt 0:00:42]} hxg6 {[%emt 0:00:24]} 16. Bd3 {[%emt 0:01:41]} Be7 {[%emt 0:01:45]} 17. Kf1 {[%emt 0:00:14]} Qd8 {[%emt 0:03:41]} 18. f4 {[%emt 0:01:14]} Ncb6 {[%emt 0:00:41]} 19. Kg2 {[%emt 0:00:33]} Rb8 {[%emt 0:07:53]} 20. c3 {[%emt 0:01:33]} O-O {[%emt 0:01:53]} 21. h4 {[%emt 0:01:59]} Qc7 {[%emt 0:05:36]} 22. h5 {[%emt 0:01:58]} g5 {[%emt 0:03:29]} 23. fxg5 {[%emt 0:00:04]} Nc4 {[%emt 0:00:30]} 24. Nxc4 {[%emt 0:01:52]} dxc4 {[%emt 0:00:05]} 25. Be4 {[%emt 0:01:38]} Ba3 {[%emt 0:01:37]} 26. Rxb8 {[%emt 0:00:22]} Rxb8 {[%emt 0:00:01]} 27. Qf1 {[%emt 0:00:16]} Rb2+ {[%emt 0:00:14]} 28. Kg3 {[%emt 0:01:21]} Nxe5 {[%emt 0:01:08]} 29. dxe5 {[%emt 0:00:44]} Qxe5+ {[%emt 0:00:07]} 30. Qf4 {[%emt 0:00:21]} Qxc3 {[%emt 0:00:15]} 31. Kh4 {[%emt 0:00:39]} Be7 {[%emt 0:01:54]} 32. Bd4 {[%emt 0:00:31]} Qd2 {[%emt 0:00:31]} 33. Qe5 {[%emt 0:00:29]} Bxg5+ {[%emt 0:00:27]} 34. Qxg5 {[%emt 0:00:05]} Qxd4 {[%emt 0:00:06]} 35. Qf4 {[%emt 0:00:44]} c5 {[%emt 0:00:56]} 36. h6 {[%emt 0:00:39]} gxh6 {[%emt 0:00:38]} 37. Rf1 {[%emt 0:00:30]} Qg7 {[%emt 0:00:26]} 38. Rd1 {[%emt 0:00:27]} Qg5+ {[%emt 0:00:29]} 39. Qxg5+ {[%emt 0:00:05]} hxg5+ {[%emt 0:00:03]} 40. Kxg5 {[%emt 0:00:08]} Kg7 {[%emt 0:00:08]} 41. Kf4 {[%emt 0:07:22]} f5 {[%emt 0:05:09]} 42. gxf5 {[%emt 0:00:43]} exf5 {[%emt 0:00:06]} 43. Kxf5 {[%emt 0:00:40]} Rf2+ {[%emt 0:00:54]} 44. Ke5 {[%emt 0:00:10]} a5 {[%emt 0:03:45]} 45. Ra1 {[%emt 0:00:49]} Rf8 {[%emt 0:01:08]} 46. Rxa5 {[%emt 0:00:54]} Re8+ {[%emt 0:01:05]} 47. Kd5 {[%emt 0:01:14]} Rd8+ {[%emt 0:00:28]} 48. Kxc5 {[%emt 0:00:59]} c3 {[%emt 0:00:49]} 49. Ra2 {[%emt 0:00:54]} Rd2 {[%emt 0:01:06]} 50. Bc2 {[%emt 0:00:04]} Rd8 {[%emt 0:00:22]} 51. Kb4 {[%emt 0:00:22]} Rc8 {[%emt 0:00:52]} 52. Bd3 {[%emt 0:00:13]} c2 {[%emt 0:00:46]} 53. Bxc2 {[%emt 0:00:05]} Kf6 {[%emt 0:00:22]} 54. Bd3 {[%emt 0:00:14]} Ke5 {[%emt 0:01:16]} 55. Bc4 {[%emt 0:00:07]} Rb8+ {[%emt 0:01:29]} 56. Kc3 {[%emt 0:00:05]} Rh8 {[%emt 0:00:41]} 57. Re2+ {[%emt 0:00:07]} Kd6 {[%emt 0:00:15]} 58. Re4 {[%emt 0:00:31]} Rh1 {[%emt 0:00:54]} 59. Kd4 {[%emt 0:00:10]} Rd1+ {[%emt 0:00:22]} 60. Bd3 {[%emt 0:00:04]} Kd7 {[%emt 0:01:31]} 61. Rg4 {[%emt 0:00:46]} Ke6 {[%emt 0:00:48]} 62. Rg6+ {[%emt 0:00:34]} Kf7 {[%emt 0:00:41]} 63. Ra6 {[%emt 0:00:12]} Ke7 {[%emt 0:02:16]} 64. Ke4 {[%emt 0:00:31]} Re1+ {[%emt 0:01:27]} 65. Kf5 {[%emt 0:00:06]} Kd7 {[%emt 0:00:54]} 66. Be4 {[%emt 0:00:06]} Kc7 {[%emt 0:04:39]} 67. Ke5 {[%emt 0:00:05]} Rd1 {[%emt 0:02:48]} 68. Rc6+ {[%emt 0:01:14]} Kd7 {[%emt 0:00:19]} 69. Rb6 {[%emt 0:00:19]} Re1 {[%emt 0:05:15]} 70. Rb7+ {[%emt 0:00:08]} Kc8 {[%emt 0:00:09]} 71. Rg7 {[%emt 0:00:33]} Kb8 {[%emt 0:01:31]} 72. Re7 {[%emt 0:00:34]} Rd1 {[%emt 0:00:20]} 73. Rg7 {[%emt 0:01:34]} Re1 {[%emt 0:00:30]} 74. Kd5 {[%emt 0:00:18]} Rc1 {[%emt 0:00:58]} 75. Kd6 {[%emt 0:00:12]} Rd1+ {[%emt 0:01:49]} 76. Bd5 {[%emt 0:00:05]} Rc1 {[%emt 0:01:10]} 77. Rb7+ {[%emt 0:01:30]} Kc8 {[%emt 0:00:10]} 78. Rb2 {[%emt 0:00:58]} Rg1 {[%emt 0:00:28]} 79. Be6+ {[%emt 0:00:07] Rc1 Bd5 Rd1 Ra2 Rb1 Rh2} 1-0